[Event "*** Titled Tuesday 3|2 Blitz"]
[Site "Chess.com"]
[Date "2015.08.04"]
[Round "8"]
[White "Konavets"]
[Black "samolo"]
[Result "1-0"]
[WhiteElo "2480"]
[BlackElo "2495"]
[TimeControl "180+2"]
[EndTime "13:16:44 PDT"]
[Termination "Konavets won by checkmate"]

1. e4 {[%clk 0:03:01.9]} 1... g6 {[%clk 0:03:01.9]} 2. d4 {[%clk 0:03:00.3]}
2... Bg7 {[%clk 0:03:03.5]} 3. Be3 {[%clk 0:03:01.9]} 3... d6 {[%clk 0:03:05.1]}
4. Qd2 {[%clk 0:03:02.9]} 4... a6 {[%clk 0:03:06.3]} 5. Nc3 {[%clk 0:03:01.9]}
5... b5 {[%clk 0:03:07.3]} 6. f3 {[%clk 0:03:02]} 6... Bb7 {[%clk 0:03:08.6]} 7.
h4 {[%clk 0:03:03.5]} 7... h5 {[%clk 0:03:09.2]} 8. Nh3 {[%clk 0:03:04.3]} 8...
Nd7 {[%clk 0:03:11.1]} 9. Ng5 {[%clk 0:03:05.6]} 9... Ngf6 {[%clk 0:03:06.9]}
10. d5 {[%clk 0:02:52.7]} 10... c5 {[%clk 0:03:05.1]} 11. dxc6 {[%clk
0:02:51.8]} 11... Bxc6 {[%clk 0:03:05.1]} 12. a3 {[%clk 0:02:52.8]} 12... Rc8
{[%clk 0:03:04.7]} 13. Bd4 {[%clk 0:02:52.9]} 13... Qc7 {[%clk 0:03:03.6]} 14.
O-O-O {[%clk 0:02:53]} 14... Qb7 {[%clk 0:03:04.2]} 15. Kb1 {[%clk 0:02:53.6]}
15... a5 {[%clk 0:03:03.3]} 16. Nd5 {[%clk 0:02:52.9]} 16... Bxd5 {[%clk
0:02:58]} 17. exd5 {[%clk 0:02:51.8]} 17... b4 {[%clk 0:02:59.2]} 18. a4 {[%clk
0:02:51.4]} 18... Qxd5 {[%clk 0:02:53.9]} 19. Bb5 {[%clk 0:02:52]} 19... O-O
{[%clk 0:02:51.3]} 20. Rhe1 {[%clk 0:02:48.9]} 20... b3 {[%clk 0:02:33.4]} 21.
cxb3 {[%clk 0:02:41.5]} 21... e5 {[%clk 0:02:30.3]} 22. Bc3 {[%clk 0:02:41]}
22... Qxb3 {[%clk 0:02:31.5]} 23. Qc2 {[%clk 0:02:40.5]} 23... Qxc2+ {[%clk
0:02:08.6]} 24. Kxc2 {[%clk 0:02:42.4]} 24... Nb6 {[%clk 0:01:46]} 25. Rxd6
{[%clk 0:02:35.8]} 25... Nfd5 {[%clk 0:01:47.5]} 26. Kb3 {[%clk 0:02:23.1]}
26... Nxc3 {[%clk 0:01:33]} 27. bxc3 {[%clk 0:02:18]} 27... Rb8 {[%clk
0:01:18.2]} 28. Ne4 {[%clk 0:02:16.5]} 28... Rfc8 {[%clk 0:01:17.9]} 29. Red1
{[%clk 0:02:01.2]} 29... Bf8 {[%clk 0:01:13.6]} 30. Rc6 {[%clk 0:01:38.6]} 30...
Rxc6 {[%clk 0:01:12.3]} 31. Bxc6 {[%clk 0:01:40.5]} 31... Be7 {[%clk 0:01:13.7]}
32. Bb5 {[%clk 0:01:40.8]} 32... Bxh4 {[%clk 0:01:13.2]} 33. c4 {[%clk
0:01:42.1]} 33... f5 {[%clk 0:01:09.7]} 34. Nc3 {[%clk 0:01:25.1]} 34... Bf2
{[%clk 0:01:08.5]} 35. Rd6 {[%clk 0:01:25.3]} 35... Kg7 {[%clk 0:01:09.8]} 36.
Rc6 {[%clk 0:01:24.7]} 36... Kh6 {[%clk 0:01:04.9]} 37. c5 {[%clk 0:01:23.6]}
37... Nd7 {[%clk 0:01:06]} 38. Kc4 {[%clk 0:01:24.9]} 38... Nxc5 {[%clk
0:01:05]} 39. Rxc5 {[%clk 0:01:24.9]} 39... Bxc5 {[%clk 0:01:06.9]} 40. Kxc5
{[%clk 0:01:25.8]} 40... Kg5 {[%clk 0:01:06.5]} 41. Ne2 {[%clk 0:01:24]} 41...
h4 {[%clk 0:00:56.5]} 42. Kd5 {[%clk 0:01:24.2]} 42... Kf6 {[%clk 0:00:57.6]}
43. Kd6 {[%clk 0:01:21.5]} 43... Rd8+ {[%clk 0:00:56.4]} 44. Bd7 {[%clk
0:01:21.7]} 44... e4 {[%clk 0:00:53.6]} 45. fxe4 {[%clk 0:01:21.9]} 45... fxe4
{[%clk 0:00:55.5]} 46. Kc7 {[%clk 0:01:23.3]} 46... Rh8 {[%clk 0:00:54.9]} 47.
Kb6 {[%clk 0:01:23.4]} 47... Ke7 {[%clk 0:00:50.3]} 48. Bg4 {[%clk 0:01:24.1]}
48... Kd6 {[%clk 0:00:45.8]} 49. Nc3 {[%clk 0:01:21.3]} 49... Ke5 {[%clk
0:00:46.6]} 50. Ne2 {[%clk 0:01:19.1]} 50... Kd5 {[%clk 0:00:44.5]} 51. Bd7
{[%clk 0:01:19.1]} 51... Rd8 {[%clk 0:00:42.5]} 52. Bc6+ {[%clk 0:01:17.9]}
52... Ke5 {[%clk 0:00:43.8]} 53. Kxa5 {[%clk 0:01:19.3]} 53... g5 {[%clk
0:00:45.1]} 54. Kb6 {[%clk 0:01:18.3]} 54... g4 {[%clk 0:00:46.3]} 55. a5 {[%clk
0:01:17.4]} 55... h3 {[%clk 0:00:47.6]} 56. gxh3 {[%clk 0:01:18.6]} 56... gxh3
{[%clk 0:00:49.5]} 57. a6 {[%clk 0:01:19.7]} 57... h2 {[%clk 0:00:47.7]} 58. Ng3
{[%clk 0:01:20.2]} 58... e3 {[%clk 0:00:49.2]} 59. a7 {[%clk 0:01:19.8]} 59...
Kf4 {[%clk 0:00:47.9]} 60. Ne2+ {[%clk 0:01:20.5]} 60... Ke5 {[%clk 0:00:44]}
61. Kc7 {[%clk 0:01:20.9]} 61... Rh8 {[%clk 0:00:39]} 62. a8=Q {[%clk
0:01:21.8]} 62... Rxa8 {[%clk 0:00:39.8]} 63. Bxa8 {[%clk 0:01:23.7]} 63... Kf5
{[%clk 0:00:37.9]} 64. Bf3 {[%clk 0:01:24.2]} 64... Ke5 {[%clk 0:00:39.8]} 65.
Kc6 {[%clk 0:01:25.2]} 65... Kf5 {[%clk 0:00:40.7]} 66. Kd5 {[%clk 0:01:26.6]}
66... Kg5 {[%clk 0:00:42.6]} 67. Ke4 {[%clk 0:01:27.7]} 67... Kh4 {[%clk
0:00:43.8]} 68. Kxe3 {[%clk 0:01:29.1]} 68... Kh3 {[%clk 0:00:45.7]} 69. Kf4
{[%clk 0:01:29.4]} 69... Kh4 {[%clk 0:00:47.4]} 70. Ng3 {[%clk 0:01:29]} 70...
Kh3 {[%clk 0:00:48.4]} 71. Nf5 {[%clk 0:01:30]} 71... h1=Q {[%clk 0:00:49.2]}
72. Bxh1 {[%clk 0:01:31.2]} 72... Kh2 {[%clk 0:00:51.1]} 73. Bf3 {[%clk
0:01:32.5]} 73... Kh3 {[%clk 0:00:52.5]} 74. Kg5 {[%clk 0:01:32.5]} 74... Kh2
{[%clk 0:00:53.3]} 75. Kg4 {[%clk 0:01:31.8]} 75... Kg1 {[%clk 0:00:55.2]} 76.
Kf4 {[%clk 0:01:29.8]} 76... Kf2 {[%clk 0:00:57.1]} 77. Nd4 {[%clk 0:01:29.5]}
77... Ke1 {[%clk 0:00:59]} 78. Ke3 {[%clk 0:01:30.6]} 78... Kf1 {[%clk
0:00:59.9]} 79. Nc2 {[%clk 0:01:26.5]} 79... Kg1 {[%clk 0:01:01]} 80. Nb4 {[%clk
0:01:20.3]} 80... Kf1 {[%clk 0:01:02.9]} 81. Nd3 {[%clk 0:01:21.5]} 81... Kg1
{[%clk 0:01:04.4]} 82. Ke2 {[%clk 0:01:22.7]} 82... Kh2 {[%clk 0:01:05.6]} 83.
Nf4 {[%clk 0:01:22.9]} 83... Kg3 {[%clk 0:01:06.7]} 84. Ng6 {[%clk 0:01:23.8]}
84... Kh3 {[%clk 0:01:07.4]} 85. Kf2 {[%clk 0:01:25.2]} 85... Kh2 {[%clk
0:01:08.5]} 86. Bg4 {[%clk 0:01:26.7]} 86... Kh1 {[%clk 0:01:09.6]} 87. Nh4
{[%clk 0:01:25.5]} 87... Kh2 {[%clk 0:01:11.5]} 88. Nf3+ {[%clk 0:01:25.5]}
88... Kh1 {[%clk 0:01:12.7]} 89. Nd2 {[%clk 0:01:26.9]} 89... Kh2 {[%clk
0:01:14.6]} 90. Nf1+ {[%clk 0:01:28.6]} 90... Kh1 {[%clk 0:01:15.9]} 91. Bf3#
{[%clk 0:01:30.5]} 1-0

[Event "*** Titled Tuesday 3|2 Blitz"]
[Site "Chess.com"]
[Date "2015.08.04"]
[Round "8"]
[White "lexiel"]
[Black "Krutoy123"]
[Result "0-1"]
[WhiteElo "2280"]
[BlackElo "2150"]
[TimeControl "180+2"]
[EndTime "13:17:04 PDT"]
[Termination "Krutoy123 won by resignation"]

1. d4 {[%clk 0:02:58.6]} 1... Nf6 {[%clk 0:03:00]} 2. Nc3 {[%clk 0:02:59]} 2...
e6 {[%clk 0:02:59.7]} 3. Bf4 {[%clk 0:02:59.3]} 3... d5 {[%clk 0:03:00.3]} 4. e3
{[%clk 0:02:54]} 4... Bd6 {[%clk 0:03:01.1]} 5. Nge2 {[%clk 0:02:50.9]} 5... O-O
{[%clk 0:03:00.8]} 6. Qd2 {[%clk 0:02:50.4]} 6... c5 {[%clk 0:03:01.7]} 7. dxc5
{[%clk 0:02:46.4]} 7... Bxc5 {[%clk 0:03:03.6]} 8. O-O-O {[%clk 0:02:45.5]} 8...
Nc6 {[%clk 0:03:04.6]} 9. f3 {[%clk 0:02:36.9]} 9... h6 {[%clk 0:03:03]} 10. Kb1
{[%clk 0:02:04.5]} 10... a6 {[%clk 0:02:59.9]} 11. g4 {[%clk 0:02:03.3]} 11...
e5 {[%clk 0:02:50.1]} 12. Bg3 {[%clk 0:02:03.2]} 12... d4 {[%clk 0:02:47.3]} 13.
exd4 {[%clk 0:01:56.5]} 13... exd4 {[%clk 0:02:49.2]} 14. Ne4 {[%clk 0:01:50.7]}
14... Nxe4 {[%clk 0:02:49]} 15. fxe4 {[%clk 0:01:51.4]} 15... Bxg4 {[%clk
0:02:50.5]} 16. h3 {[%clk 0:01:42.5]} 16... Bf3 {[%clk 0:02:50.4]} 17. Rh2
{[%clk 0:01:39.2]} 17... Bd6 {[%clk 0:02:50.3]} 18. Bf4 {[%clk 0:01:23.6]} 18...
Bxe2 {[%clk 0:02:42.8]} 19. Bxe2 {[%clk 0:01:19.8]} 19... Qb8 {[%clk 0:02:39.1]}
20. Rf2 {[%clk 0:01:18]} 20... Bxf4 {[%clk 0:02:39.7]} 21. Rxf4 {[%clk
0:01:18.4]} 21... Qd6 {[%clk 0:02:40.9]} 22. Bc4 {[%clk 0:01:16]} 22... Rad8
{[%clk 0:02:32.3]} 23. Rg1 {[%clk 0:01:15]} 23... Ne5 {[%clk 0:02:27.7]} 24. Bd5
{[%clk 0:01:15.5]} 24... Qb6 {[%clk 0:02:09.7]} 25. Qf2 {[%clk 0:00:43.9]} 25...
Kh8 {[%clk 0:02:01.2]} 26. Rf5 {[%clk 0:00:42.8]} 26... f6 {[%clk 0:01:57.4]}
27. Rh5 {[%clk 0:00:37.6]} 27... Qc7 {[%clk 0:01:54.2]} 28. Qf4 {[%clk
0:00:31.4]} 28... Kh7 {[%clk 0:01:15.5]} 29. a3 {[%clk 0:00:22.6]} 29... Qe7
{[%clk 0:01:12]} 30. Rh4 {[%clk 0:00:15]} 30... Qd7 {[%clk 0:01:08.2]} 31. Rh5
{[%clk 0:00:15]} 31... g5 {[%clk 0:01:04.7]} 32. Qf2 {[%clk 0:00:11.2]} 32...
Ng6 {[%clk 0:01:01.2]} 33. Qxd4 {[%clk 0:00:11.5]} 33... Nf4 {[%clk 0:00:53.2]}
34. Qd1 {[%clk 0:00:12.4]} 34... Qe8 {[%clk 0:00:46.5]} 35. Rh4 {[%clk
0:00:09.2]} 35... gxh4 {[%clk 0:00:48.1]} 36. Qg4 {[%clk 0:00:07.7]} 36... Ng6
{[%clk 0:00:47.9]} 37. Qf5 {[%clk 0:00:08.5]} 37... b5 {[%clk 0:00:37.7]} 38. a4
{[%clk 0:00:08.5]} 38... bxa4 {[%clk 0:00:37.7]} 39. Bc4 {[%clk 0:00:08.8]}
39... Rd6 {[%clk 0:00:34.3]} 40. Qh5 {[%clk 0:00:07.3]} 40... Ne5 {[%clk
0:00:27.2]} 41. Qf5+ {[%clk 0:00:08.2]} 41... Kh8 {[%clk 0:00:25.7]} 42. Qf4
{[%clk 0:00:09]} 42... Qh5 {[%clk 0:00:25.6]} 43. Be2 {[%clk 0:00:08.8]} 43...
Qg5 {[%clk 0:00:12.5]} 44. Rxg5 {[%clk 0:00:09.9]} 44... hxg5 {[%clk 0:00:14.4]}
45. Qf5 {[%clk 0:00:11.5]} 45... Kg7 {[%clk 0:00:14.4]} 46. Bh5 {[%clk
0:00:12.4]} 46... Rfd8 {[%clk 0:00:15.2]} 47. Be2 {[%clk 0:00:13.6]} 47... Rc6
{[%clk 0:00:15.9]} 48. Qf1 {[%clk 0:00:12.8]} 48... Rb8 {[%clk 0:00:15.7]} 49.
Bd3 {[%clk 0:00:10.6]} 49... Rcb6 {[%clk 0:00:15.8]} 50. b4 {[%clk 0:00:10]}
50... Rxb4+ {[%clk 0:00:15.4]} 51. Ka2 {[%clk 0:00:10.2]} 51... Rb2+ {[%clk
0:00:14.6]} 52. Ka3 {[%clk 0:00:10.6]} 52... Nxd3 {[%clk 0:00:15.4]} 53. Qxd3
{[%clk 0:00:11.1]} 53... R2b3+ {[%clk 0:00:16]} 54. cxb3 {[%clk 0:00:10.8]}
54... Rxb3+ {[%clk 0:00:17.9]} 55. Qxb3 {[%clk 0:00:11.4]} 55... axb3 {[%clk
0:00:19.8]} 0-1

[Event "*** Titled Tuesday 3|2 Blitz"]
[Site "Chess.com"]
[Date "2015.08.04"]
[Round "8"]
[White "bugsbunny444"]
[Black "zmaj23"]
[Result "0-1"]
[WhiteElo "2302"]
[BlackElo "2492"]
[TimeControl "180+2"]
[EndTime "13:17:05 PDT"]
[Termination "zmaj23 won by checkmate"]

1. Nf3 {[%clk 0:03:01.9]} 1... c5 {[%clk 0:03:00]} 2. c4 {[%clk 0:03:03.1]} 2...
g6 {[%clk 0:02:59.8]} 3. d4 {[%clk 0:03:03.7]} 3... cxd4 {[%clk 0:03:00.4]} 4.
Nxd4 {[%clk 0:03:04.1]} 4... Bg7 {[%clk 0:03:00.8]} 5. e4 {[%clk 0:03:05.4]}
5... d6 {[%clk 0:03:00.2]} 6. Nc3 {[%clk 0:03:06.3]} 6... Nf6 {[%clk 0:03:00.3]}
7. Be2 {[%clk 0:03:07.3]} 7... O-O {[%clk 0:03:00.8]} 8. Be3 {[%clk 0:03:08]}
8... Nc6 {[%clk 0:03:01.1]} 9. O-O {[%clk 0:03:08.9]} 9... a6 {[%clk 0:03:00.9]}
10. f3 {[%clk 0:03:08.7]} 10... Nxd4 {[%clk 0:02:53.7]} 11. Bxd4 {[%clk
0:03:10.6]} 11... Be6 {[%clk 0:02:55.4]} 12. Qd2 {[%clk 0:03:07.4]} 12... Nd7
{[%clk 0:02:53.8]} 13. f4 {[%clk 0:03:00.7]} 13... Bxd4+ {[%clk 0:02:52]} 14.
Qxd4 {[%clk 0:03:01.6]} 14... f6 {[%clk 0:02:53.9]} 15. Rfd1 {[%clk 0:02:42.2]}
15... Rc8 {[%clk 0:02:49.7]} 16. Rac1 {[%clk 0:02:41.9]} 16... Qa5 {[%clk
0:02:47.6]} 17. b3 {[%clk 0:02:35.4]} 17... Bf7 {[%clk 0:02:41.1]} 18. g3 {[%clk
0:02:30.5]} 18... Rcd8 {[%clk 0:02:37.6]} 19. Kg2 {[%clk 0:02:05.5]} 19... Nb8
{[%clk 0:02:32.2]} 20. Qd2 {[%clk 0:01:46.4]} 20... Nc6 {[%clk 0:02:28.1]} 21.
Nd5 {[%clk 0:01:35.1]} 21... Qxd2 {[%clk 0:02:24.9]} 22. Rxd2 {[%clk 0:01:36.1]}
22... Kg7 {[%clk 0:02:23.4]} 23. Bg4 {[%clk 0:01:28.9]} 23... e5 {[%clk
0:02:21.6]} 24. Ne3 {[%clk 0:01:09.3]} 24... Nd4 {[%clk 0:02:22.8]} 25. Nc2
{[%clk 0:01:09.7]} 25... Nxc2 {[%clk 0:02:16]} 26. Rcxc2 {[%clk 0:01:05.2]}
26... Be8 {[%clk 0:02:15.8]} 27. Be6 {[%clk 0:01:01.6]} 27... Bc6 {[%clk
0:02:14.2]} 28. Bd5 {[%clk 0:01:02.6]} 28... f5 {[%clk 0:02:10]} 29. exf5 {[%clk
0:00:53.8]} 29... Rxf5 {[%clk 0:02:08.2]} 30. fxe5 {[%clk 0:00:33.4]} 30... Rxe5
{[%clk 0:02:07.5]} 31. Rc3 {[%clk 0:00:19.5]} 31... Bxd5+ {[%clk 0:01:56.5]} 32.
cxd5 {[%clk 0:00:21.4]} 32... Rd7 {[%clk 0:01:55.2]} 33. Rc8 {[%clk 0:00:20]}
33... Rde7 {[%clk 0:01:56.2]} 34. Rd8 {[%clk 0:00:17.8]} 34... Re2+ {[%clk
0:01:57.3]} 35. Rxe2 {[%clk 0:00:18.9]} 35... Rxe2+ {[%clk 0:01:57.5]} 36. Kf3
{[%clk 0:00:11.9]} 36... Rxa2 {[%clk 0:01:52.4]} 37. Rxd6 {[%clk 0:00:11.3]}
37... Rxh2 {[%clk 0:01:54.1]} 38. Rd7+ {[%clk 0:00:11.8]} 38... Kf6 {[%clk
0:01:54.5]} 39. Rxb7 {[%clk 0:00:12.4]} 39... Ke5 {[%clk 0:01:53.2]} 40. Rb6
{[%clk 0:00:09.7]} 40... a5 {[%clk 0:01:52]} 41. Rb5 {[%clk 0:00:07.6]} 41...
Ra2 {[%clk 0:01:50.5]} 42. Ke3 {[%clk 0:00:06.4]} 42... h5 {[%clk 0:01:44.4]}
43. Kf3 {[%clk 0:00:07.5]} 43... Ra3 {[%clk 0:01:37.4]} 44. Kg2 {[%clk
0:00:06.8]} 44... Kd6 {[%clk 0:01:35.4]} 45. Rb6+ {[%clk 0:00:05.8]} 45... Kxd5
{[%clk 0:01:35.8]} 46. Rxg6 {[%clk 0:00:07.4]} 46... Kc5 {[%clk 0:01:21.7]} 47.
Rg5+ {[%clk 0:00:03.8]} 47... Kb4 {[%clk 0:01:21.2]} 48. Rxh5 {[%clk 0:00:05]}
48... Rxb3 {[%clk 0:01:21.9]} 49. Rh8 {[%clk 0:00:05.5]} 49... a4 {[%clk
0:01:21.2]} 50. Rb8+ {[%clk 0:00:05.1]} 50... Kc4 {[%clk 0:01:19.5]} 51. Ra8
{[%clk 0:00:06]} 51... a3 {[%clk 0:01:17.5]} 52. Kh3 {[%clk 0:00:05.9]} 52...
Rd3 {[%clk 0:01:15.5]} 53. Kh4 {[%clk 0:00:05.8]} 53... Rd4+ {[%clk 0:01:14.3]}
54. g4 {[%clk 0:00:04.8]} 54... Kb3 {[%clk 0:01:15.7]} 55. Kh5 {[%clk
0:00:03.4]} 55... Ra4 {[%clk 0:01:16.8]} 56. Rb8+ {[%clk 0:00:04.5]} 56... Rb4
{[%clk 0:01:17.6]} 57. Ra8 {[%clk 0:00:05.3]} 57... Ra4 {[%clk 0:01:15.2]} 58.
Rb8+ {[%clk 0:00:06.4]} 58... Kc2 {[%clk 0:01:15.4]} 59. Rc8+ {[%clk 0:00:07.6]}
59... Kd2 {[%clk 0:01:15.9]} 60. Rd8+ {[%clk 0:00:08.2]} 60... Ke2 {[%clk
0:01:16.6]} 61. Rc8 {[%clk 0:00:04.5]} 61... Kd2 {[%clk 0:01:06.5]} 62. Rd8+
{[%clk 0:00:05.3]} 62... Ke2 {[%clk 0:01:03.3]} 63. Rc8 {[%clk 0:00:06.3]} 63...
a2 {[%clk 0:01:01.6]} 64. Rc1 {[%clk 0:00:06.9]} 64... a1=Q {[%clk 0:01:02.2]}
65. Rxa1 {[%clk 0:00:08]} 65... Rxa1 {[%clk 0:01:04.1]} 66. g5 {[%clk
0:00:08.7]} 66... Kf3 {[%clk 0:01:02.4]} 67. g6 {[%clk 0:00:07.1]} 67... Kf4
{[%clk 0:01:00.1]} 68. g7 {[%clk 0:00:06.8]} 68... Kf5 {[%clk 0:01:00.7]} 69.
Kh6 {[%clk 0:00:03.2]} 69... Rh1# {[%clk 0:01:01.4]} 0-1

[Event "*** Titled Tuesday 3|2 Blitz"]
[Site "Chess.com"]
[Date "2015.08.04"]
[Round "8"]
[White "yurisolo"]
[Black "stefanodinn"]
[Result "0-1"]
[WhiteElo "2367"]
[BlackElo "2158"]
[TimeControl "180+2"]
[EndTime "13:17:06 PDT"]
[Termination "stefanodinn won on time"]

1. e4 {[%clk 0:03:01.9]} 1... c5 {[%clk 0:02:57.5]} 2. d4 {[%clk 0:03:02.8]}
2... cxd4 {[%clk 0:02:46.3]} 3. c3 {[%clk 0:03:04.3]} 3... dxc3 {[%clk 0:02:47]}
4. Nxc3 {[%clk 0:03:06.2]} 4... Nc6 {[%clk 0:02:47.8]} 5. Nf3 {[%clk 0:03:07.8]}
5... d6 {[%clk 0:02:48.2]} 6. Bc4 {[%clk 0:03:09.2]} 6... e6 {[%clk 0:02:48.9]}
7. O-O {[%clk 0:03:09.5]} 7... Be7 {[%clk 0:02:49.6]} 8. Qe2 {[%clk 0:03:10.4]}
8... Nf6 {[%clk 0:02:20.9]} 9. Rd1 {[%clk 0:03:11.6]} 9... e5 {[%clk 0:02:21.6]}
10. Be3 {[%clk 0:03:13]} 10... O-O {[%clk 0:02:22.1]} 11. Rac1 {[%clk
0:03:08.1]} 11... Bg4 {[%clk 0:02:07.4]} 12. h3 {[%clk 0:03:08.5]} 12... Bh5
{[%clk 0:01:45.6]} 13. g4 {[%clk 0:02:46.7]} 13... Bg6 {[%clk 0:01:42]} 14. Qd3
{[%clk 0:02:29.7]} 14... Nb4 {[%clk 0:01:18.8]} 15. Qb1 {[%clk 0:02:29.2]} 15...
Rc8 {[%clk 0:01:18.8]} 16. Bb3 {[%clk 0:02:24.9]} 16... Rxc3 {[%clk 0:01:06.2]}
17. bxc3 {[%clk 0:02:24.6]} 17... Bxe4 {[%clk 0:01:06.5]} 18. Qa1 {[%clk
0:02:15]} 18... Bxf3 {[%clk 0:00:49.1]} 19. cxb4 {[%clk 0:02:15.9]} 19... Bxd1
{[%clk 0:00:48.7]} 20. Rxd1 {[%clk 0:02:17.8]} 20... a6 {[%clk 0:00:45.4]} 21.
Qc3 {[%clk 0:02:10.5]} 21... h6 {[%clk 0:00:21.8]} 22. a3 {[%clk 0:02:07]} 22...
Qd7 {[%clk 0:00:19.1]} 23. Rc1 {[%clk 0:02:06.8]} 23... Rd8 {[%clk 0:00:15.3]}
24. Bb6 {[%clk 0:02:05.4]} 24... Re8 {[%clk 0:00:15.4]} 25. Qc7 {[%clk
0:02:02.4]} 25... Bd8 {[%clk 0:00:15.1]} 26. Qxd7 {[%clk 0:02:01.5]} 26... Nxd7
{[%clk 0:00:15.5]} 27. Be3 {[%clk 0:02:00.3]} 27... Nf6 {[%clk 0:00:14]} 28. Ba4
{[%clk 0:01:19.2]} 28... b5 {[%clk 0:00:14.2]} 29. Bb3 {[%clk 0:01:19.7]} 29...
d5 {[%clk 0:00:15]} 30. Rc6 {[%clk 0:01:04.7]} 30... d4 {[%clk 0:00:10.3]} 31.
Bc1 {[%clk 0:01:05.5]} 31... a5 {[%clk 0:00:10.9]} 32. Rc5 {[%clk 0:00:55.7]}
32... axb4 {[%clk 0:00:11.5]} 33. axb4 {[%clk 0:00:56.4]} 33... e4 {[%clk
0:00:10.5]} 34. Rxb5 {[%clk 0:00:53.6]} 34... e3 {[%clk 0:00:11.6]} 35. fxe3
{[%clk 0:00:43.6]} 35... dxe3 {[%clk 0:00:12.3]} 36. Rb8 {[%clk 0:00:09.5]}
36... e2 {[%clk 0:00:11.2]} 37. Bd2 {[%clk 0:00:10.4]} 37... e1=Q+ {[%clk
0:00:11.4]} 38. Bxe1 {[%clk 0:00:11.5]} 38... Rxe1+ {[%clk 0:00:12.2]} 39. Kf2
{[%clk 0:00:13.2]} 39... Re8 {[%clk 0:00:12.5]} 40. Rb7 {[%clk 0:00:10.3]} 40...
Be7 {[%clk 0:00:12.4]} 41. Ba4 {[%clk 0:00:09.2]} 41... Ne4+ {[%clk 0:00:10.4]}
42. Kf3 {[%clk 0:00:06.8]} 42... Ng5+ {[%clk 0:00:08.9]} 43. Kg2 {[%clk
0:00:07.5]} 43... Ra8 {[%clk 0:00:06.1]} 44. Bb3 {[%clk 0:00:07.1]} 44... Bf6
{[%clk 0:00:06.1]} 45. h4 {[%clk 0:00:07.9]} 45... Ne4 {[%clk 0:00:07.1]} 46.
Bxf7+ {[%clk 0:00:07.9]} 46... Kh7 {[%clk 0:00:06.6]} 47. h5 {[%clk 0:00:06.6]}
47... Ng5 {[%clk 0:00:06.7]} 48. Bg6+ {[%clk 0:00:06.6]} 48... Kg8 {[%clk
0:00:07.7]} 49. b5 {[%clk 0:00:06.3]} 49... Bd4 {[%clk 0:00:05.4]} 50. Rd7
{[%clk 0:00:04.5]} 50... Bc5 {[%clk 0:00:03.8]} 51. Rc7 {[%clk 0:00:04]} 51...
Bb6 {[%clk 0:00:04.9]} 52. Rb7 {[%clk 0:00:04.7]} 52... Bc5 {[%clk 0:00:05.6]}
53. Kf1 {[%clk 0:00:05.3]} 53... Rf8+ {[%clk 0:00:04.2]} 54. Ke2 {[%clk
0:00:06]} 54... Rf6 {[%clk 0:00:05.1]} 55. Kd3 {[%clk 0:00:04.9]} 55... Ne6
{[%clk 0:00:04.9]} 0-1

[Event "*** Titled Tuesday 3|2 Blitz"]
[Site "Chess.com"]
[Date "2015.08.04"]
[Round "9"]
[White "pedromartinez91"]
[Black "bugsbunny444"]
[Result "0-1"]
[WhiteElo "2133"]
[BlackElo "2306"]
[TimeControl "180+2"]
[EndTime "13:21:24 PDT"]
[Termination "bugsbunny444 won - game abandoned"]

1. e4 {[%clk 0:03:01.9]} 1... e6 {[%clk 0:02:59.2]} 2. d4 {[%clk 0:03:01.7]}
2... d5 {[%clk 0:03:00.3]} 3. Nd2 {[%clk 0:03:02]} 3... Nf6 {[%clk 0:03:01.8]}
4. e5 {[%clk 0:03:02.4]} 4... Nfd7 {[%clk 0:03:03.5]} 5. Bd3 {[%clk 0:03:03.5]}
5... c5 {[%clk 0:03:05.4]} 6. c3 {[%clk 0:03:04.1]} 6... Nc6 {[%clk 0:03:07.3]}
7. Ne2 {[%clk 0:03:05.2]} 7... cxd4 {[%clk 0:03:08.9]} 8. cxd4 {[%clk
0:03:06.4]} 8... f6 {[%clk 0:03:10.8]} 9. exf6 {[%clk 0:03:06.9]} 9... Nxf6
{[%clk 0:03:12.7]} 10. Nf3 {[%clk 0:03:08]} 10... Bd6 {[%clk 0:03:14.6]} 11. O-O
{[%clk 0:03:09.2]} 11... O-O {[%clk 0:03:16.2]} 12. Bf4 {[%clk 0:03:07.8]} 12...
Bxf4 {[%clk 0:03:17.2]} 13. Nxf4 {[%clk 0:03:08.1]} 13... Qd6 {[%clk 0:03:19.1]}
14. Qd2 {[%clk 0:02:59]} 14... Ne4 {[%clk 0:03:19.8]} 15. Bxe4 {[%clk
0:02:53.3]} 15... dxe4 {[%clk 0:03:20.6]} 16. Ne5 {[%clk 0:02:54.2]} 16... Nxe5
{[%clk 0:03:17.3]} 17. Qe3 {[%clk 0:02:53.5]} 17... Ng4 {[%clk 0:03:06]} 18. Qg3
{[%clk 0:02:53.4]} 18... Qxf4 {[%clk 0:03:05.6]} 0-1

[Event "*** Titled Tuesday 3|2 Blitz"]
[Site "Chess.com"]
[Date "2015.08.04"]
[Round "9"]
[White "stefanodinn"]
[Black "NMJeevanK"]
[Result "0-1"]
[WhiteElo "2149"]
[BlackElo "2132"]
[TimeControl "180+2"]
[EndTime "13:24:28 PDT"]
[Termination "NMJeevanK won by resignation"]

1. e4 {[%clk 0:02:45]} 1... e5 {[%clk 0:02:59.6]} 2. Nf3 {[%clk 0:02:43.9]} 2...
Nc6 {[%clk 0:03:00.8]} 3. Bb5 {[%clk 0:02:43.9]} 3... a6 {[%clk 0:03:02]} 4. Ba4
{[%clk 0:02:44.1]} 4... Nf6 {[%clk 0:03:02.6]} 5. O-O {[%clk 0:02:44.9]} 5...
Be7 {[%clk 0:03:03.9]} 6. Re1 {[%clk 0:02:44.9]} 6... b5 {[%clk 0:03:05.5]} 7.
Bb3 {[%clk 0:02:44]} 7... d6 {[%clk 0:03:07.1]} 8. c3 {[%clk 0:02:42.5]} 8...
O-O {[%clk 0:03:07.6]} 9. d3 {[%clk 0:02:37.8]} 9... Na5 {[%clk 0:03:07]} 10.
Bc2 {[%clk 0:02:38.4]} 10... c5 {[%clk 0:03:08.7]} 11. Nbd2 {[%clk 0:02:39.1]}
11... Nc6 {[%clk 0:03:08.5]} 12. Nf1 {[%clk 0:02:39.7]} 12... Qc7 {[%clk
0:03:07.3]} 13. h3 {[%clk 0:02:24.3]} 13... d5 {[%clk 0:03:00.8]} 14. exd5
{[%clk 0:01:47.8]} 14... Nxd5 {[%clk 0:03:01.3]} 15. Ng3 {[%clk 0:01:46]} 15...
Be6 {[%clk 0:02:59.9]} 16. Ng5 {[%clk 0:01:42.8]} 16... Bxg5 {[%clk 0:02:58.7]}
17. Bxg5 {[%clk 0:01:42.7]} 17... f5 {[%clk 0:02:59.7]} 18. Bd2 {[%clk
0:01:12.6]} 18... f4 {[%clk 0:02:57]} 19. Ne4 {[%clk 0:01:13.6]} 19... f3 {[%clk
0:02:58.2]} 20. Ng5 {[%clk 0:01:13.8]} 20... Qd7 {[%clk 0:02:41.2]} 21. Nxf3
{[%clk 0:01:13.1]} 21... Rf6 {[%clk 0:02:35.9]} 22. Ng5 {[%clk 0:00:50.9]} 22...
Raf8 {[%clk 0:02:32.7]} 23. Ne4 {[%clk 0:00:51.4]} 23... Rg6 {[%clk 0:02:32]}
24. Nxc5 {[%clk 0:00:46.2]} 24... Qf7 {[%clk 0:02:14.8]} 25. Re2 {[%clk
0:00:11.3]} 25... Bxh3 {[%clk 0:02:12.4]} 0-1